Cogmind - Beta 17.1 @@@ ROGUE MODE // 2026.09.22 @ 18:41:49 Player: Caluan Result: Destroyed by MG-BQI(R) with Subdweller Shrapnel Launcher Performance ------------- Evolutions (0) 0 Regions Visited (2) 400 Robots Destroyed (37) 185 Value Destroyed (831) 831 Prototype IDs (0) 0 Alien Tech Used (0) 0 Bonus (0) 0 TOTAL SCORE: 1416 Bonus ------- None Cogmind --------- Core Integrity 0/250 Matter 300/300 Energy 100/100 System Corruption 0% Temperature Cool (0) Movement Treading (610) Ox5 Location -10/Subcaves Parts ------- > --- POWER (1) -------- Subdweller Power Source > --- PROPULSION (2) --- Light Treads Spiked Treads > --- UTILITY (2) ------ Humpback > --- WEAPON (2) ------- Barrage Gun Barrage Gun > --- INVENTORY (35) --- Light Ion Engine Subdweller Power Source Subdweller Power Source Light Treads Subdweller Monowheel Subdweller Monowheel Subdweller Monowheel Subdweller Monowheel Subdweller Monowheel Disposable Heat Sink Disposable Heat Sink Subdweller Optics Seismic Detector Power Bank Battle Rifle Subdweller Machine Gun Makeshift Shrapnel Gun Grenade Launcher Shrapnel Trap Scrap Shield Fragment (50) Scrap Shield Fragment (18) Peak State ------------ > --- POWER ------------ Subdweller Power Source > --- PROPULSION ------- Spiked Treads Subdweller Monowheel > --- UTILITY ---------- Humpback > --- WEAPON ----------- Barrage Gun Barrage Gun > --- INVENTORY -------- Light Ion Engine Subdweller Power Source Subdweller Power Source Subdweller Power Source Light Treads Light Treads Subdweller Monowheel Subdweller Monowheel Subdweller Monowheel Subdweller Monowheel Disposable Heat Sink Disposable Heat Sink Subdweller Optics Seismic Detector Power Bank Battle Rifle Subdweller Machine Gun Makeshift Shrapnel Gun Grenade Launcher Shrapnel Trap Scrap Shield Fragment Scrap Shield Fragment [Rating: 18] Favorites ----------- Power Ion Engine Engine Ion Engine Propulsion Light Treads Treads Light Treads Wheel Subdweller Monowheel Utility Humpback Device Seismic Detector Storage Humpback Protection Light Armor Plating Weapon Barrage Gun Energy Gun Subdweller Laser Ballistic Gun Barrage Gun Launcher Grenade Launcher Build | -11 -10 -10 ------- Run | Yrd Mat Sub Slots Evolved . | . . . Power . | . . . Propulsion . | . . . Utility . | . . . Weapon . | . . . Parts Attached 32 | 7 6 19 Power 4 | 1 1 2 Engine 4 | 1 1 2 Core . | . . . Reactor . | . . . Propulsion 11 | 2 . 9 Treads 5 | 2 . 3 Leg . | . . . Wheel 6 | . . 6 Hover . | . . . Flight . | . . . Utility 5 | 1 3 1 Device 1 | . 1 . Storage 3 | 1 1 1 Processor . | . . . Hackware . | . . . Protection 1 | . 1 . Artifact . | . . . Weapon 12 | 3 2 7 Energy Gun 4 | 2 . 2 Energy Cannon . | . . . Ballistic Gun 7 | 1 1 5 Ballistic Cannon . | . . . Launcher 1 | . 1 . Special Weapon . | . . . Impact Weapon . | . . . Slashing Weapon . | . . . Piercing Weapon . | . . . Special Melee Weapon . | . . . Unidentified Prototypes . | . . . Parts Lost 7 | . . 7 Power . | . . . Propulsion 3 | . . 3 Utility 1 | . . 1 Weapon 3 | . . 3 Highest Loss Streak 2 | . . 2 To Critical Strikes . | . . . Average Backups 15 | 1 5 17 Power 3 | . 1 3 Propulsion 5 | . 1 6 Utility 3 | . . 4 Weapon 3 | . 2 3 Tool/Special . | . . . Unused Backups 10 | . . 10 Power 4 | . . 4 Propulsion . | . . . Utility 4 | . . 4 Weapon 2 | . . 2 Tool/Special . | . . . Average Slot Usage (%) 85 | . 95 83 Engine 14 | . 14 14 Treads 17 | . 28 15 Wheel 9 | . . 11 Device 1 | . 7 . Storage 14 | . 14 14 Energy Gun 7 | . 5 7 Ballistic Gun 19 | . 22 19 Peak Build Rating 18 | 6 7 18 Average Rating 13 | 4 6 14 On Entrance 4 | . 6 7 Avg Prop Armor Cover (%) 9 | . . 9 Naked Turns . | . . . Heaviest Build 213 | 12 21 213 Greatest Support 40 | 40 40 40 Greatest Overweight (x) 13 | . . 13 Average Overweight (x) 5 | . . 7 Largest Inventory Capacity 35 | 8 10 35 Average Capacity 29 | 7 8 33 Most Carried 26 | 3 8 26 Average Carried 17 | 1 5 20 Final Capacity 35 | 8 10 35 Final Carried 21 | 2 8 21 Class Distribution -------------------- 79% | Hauler-Mutant 20% | Mutant Dominant Class ---------------- Mutant | -10/Materials Hauler-Mutant | -10/Subcaves Resources | -11 -10 -10 ----------- Run | Yrd Mat Sub Matter Collected 1034 | 217 249 568 Remotely . | . . . Salvage Created 1145 | . 527 618 Parts 69 | . 33 36 Haulers Intercepted 2 | . 2 . Recyclers Shooed 4 | . 4 . Parts Field Recycled . | . . . Retrieved Matter . | . . . Parts Self-Destructed 14 | . . 14 Prevented . | . . . Parts Restored . | . . . Kills | -11 -10 -10 ------- Run | Yrd Mat Sub Combat Hostiles Destroyed 28 | . 11 17 Guns 20 | . 7 13 AOE 8 | . 4 4 Classes Destroyed 9 | . 7 2 Builder 1 | . 1 . Hauler 2 | . 2 . Recycler 2 | . 2 . Operator 1 | . 1 . Turret 2 | . . 2 Watcher 1 | . 1 . Swarmer 13 | . 9 4 Grunt 2 | . 2 . Subdweller 13 | . . 13 Best Kill Streak 8 | . 8 4 Combat Bots Only 6 | . 6 4 Max Kills in Single Turn 2 | . 2 1 Gunslinging . | . . . Exploded 1 | . 1 1 Melee . | . . . Uniques/NPCs Destroyed . | . . . Combat | -11 -10 -10 -------- Run | Yrd Mat Sub Hostile Shots Fired 168 | . 37 131 Missed 55 | . 12 43 Hits 113 | . 25 88 Projectile 113 | . 25 88 AOE 2 | . . 2 Critical Strikes 3 | . 1 2 Damage Taken 1546 | . 284 1262 Core 256 | . 24 232 Absorbed by Shields . | . . . Core Remaining (%) 100 | 100 . . Volleys Fired 108 | . 34 74 Largest 2 | . 2 2 Hottest 90 | . 60 90 Shots Fired 182 | . 62 120 Gun 167 | . 59 108 Cannon . | . . . Launcher 15 | . 3 12 Special . | . . . Kinetic 116 | . 43 73 Thermal 35 | . . 35 Explosive 15 | . 3 12 Electromagnetic 16 | . 16 . Robot Hit Streak 10 | . 8 10 Robot Miss Streak 5 | . 5 4 Penetration Max . | . . . Secondary Targets 2 | . . 2 Max Gunslinging Chain 1 | . . 1 Shots Hit Robots 104 | . 33 71 Core Hits 56 | . 23 33 Critical Kills 1 | . 1 . Critical Parts Destroyed . | . . . Critical Strikes 1 | . 1 . Destroy 1 | . 1 . Melee Attacks . | . . . Impact . | . . . Slashing . | . . . Piercing . | . . . Sneak Attacks . | . . . Combat Hostiles . | . . . Follow-up Attacks . | . . . Damage Inflicted 2405 | . 674 1731 Guns 1637 | . 405 1232 Cannons . | . . . Explosions 752 | . 253 499 Melee . | . . . Ramming 16 | . 16 . Kinetic 1045 | . 276 769 Thermal 570 | . 107 463 Explosive 645 | . 146 499 Electromagnetic 129 | . 129 . Impact . | . . . Slashing . | . . . Piercing . | . . . Highest Corruption . | . . . Average Corruption . | . . . Corruption Purged . | . . . Corruption Blocked . | . . . Overload Shots . | . . . Overflow Damage 40 | . 40 . Projectiles . | . . . Explosions 40 | . 40 . Melee . | . . . Knockbacks . | . . . Impact . | . . . Kinetic . | . . . Secondary . | . . . Self-Inflicted Damage 104 | . 63 41 Shots 5 | . 2 3 Rammed 5 | . 5 . Targets Rammed 5 | . 5 . Kicked . | . . . Crushed . | . . . Highest Temperature 18 | . 12 18 Average Temperature 8 | . 11 7 Received Heat Transfer 261 | . 12 249 Siege Activations . | . . . Martial Activations . | . . . Shielding Activations . | . . . Robots Disrupted . | . . . Combat Hostiles . | . . . Robots Corrupted . | . . . Combat Hostiles . | . . . Parts Fried . | . . . Impact Corruptions . | . . . Robots Melted . | . . . Combat Hostiles . | . . . Parts Melted 1 | . . 1 Heat Transferred 800 | . 150 650 Parts Sabotaged . | . . . Parts Stolen . | . . . Parts Stripped . | . . . Power Chain Reactions 2 | . 2 . Alert | -11 -10 -10 ------- Run | Yrd Mat Sub Maximum Alert Level . | . . . Low Security (%) 100 | 100 100 . Level 1 . | . . . Level 2 . | . . . Level 3 . | . . . Level 4 . | . . . Level 5 . | . . . High Security . | . . . Max Security . | . . . Peak Influence 161 | . 161 . Initial . | . . . Average 63 | . 70 . Influence Increases 558 | . 348 210 Destroy 0b10 Robot/C 340 | . 220 120 Destroy 0b10 Robot/NC 35 | . 35 . Destroy Leader 56 | . 56 . Successful Hack 8 | . 8 . Destroy Structure 14 | . 14 . Lose Combat Pursuer 105 | . 15 90 Influence Decreases 427 | . 330 97 Entered New Map 10 | . . 10 Time Decay 407 | . 330 77 Lost Part 10 | . . 10 Squads Dispatched 2 | . 2 . Investigation 1 | . 1 . Extermination . | . . . Reinforcement 1 | . 1 . Assault . | . . . Garrison . | . . . Intercept . | . . . Searches Triggered . | . . . Construction Impeded . | . . . Haulers Reinforced . | . . . Active Scanning Responses . | . . . Cargo Convoy Interrupts . | . . . Stealth | -11 -10 -10 --------- Run | Yrd Mat Sub Distress Signals 3 | . 3 . Communications Jammed . | . . . Distress Signals . | . . . Times Spotted 46 | . 21 25 Peak Tracking Total 4 | . 3 4 Tactical Retreats 4 | . 1 3 Traps | -11 -10 -10 ------- Run | Yrd Mat Sub Traps Triggered 2 | . 2 . Indirectly . | . . . Trap Hack Attempts . | . . . Triggered . | . . . Disarmed . | . . . Reprogrammed . | . . . Reused . | . . . Traps Extracted . | . . . Installed . | . . . Triggered . | . . . Most Traps Carried 1 | . . 1 Machines | -11 -10 -10 ---------- Run | Yrd Mat Sub Machines Disabled 2 | . 1 1 Max in Single Turn 1 | . 1 1 Machines Repaired . | . . . Machines Dismantled . | . . . Machines Sabotaged . | . . . Overloaded Fab Kills . | . . . Hacking | -11 -10 -10 --------- Run | Yrd Mat Sub Machines Accessed 5 | . 4 1 Terminals 4 | . 4 . Fabricators . | . . . Repair Stations . | . . . Recycling Units . | . . . Scanalyzers . | . . . Garrison Access . | . . . Total Hacks 8 | . 5 3 Successful 7 | . 4 3 Failed 1 | . 1 . Catastrophic . | . . . Database Lockouts . | . . . Manual 5 | . 5 . Terminals 5 | . 5 . Fabricators . | . . . Repair Stations . | . . . Recycling Units . | . . . Scanalyzers . | . . . Garrison Access . | . . . Terminal Hacks 3 | . . 3 Record 3 | . . 3 Fabricator Hacks . | . . . Repair Station Hacks . | . . . Recycling Unit Hacks . | . . . Scanalyzer . | . . . Garrison Access Hacks . | . . . Unauthorized Hacks 4 | . 4 . Terminals 4 | . 4 . Botnet 4 | . 4 . Fabricators . | . . . Repair Stations . | . . . Recycling Units . | . . . Scanalyzers . | . . . Garrison Access . | . . . Data Cores Recovered . | . . . Used . | . . . Hacking Detections 2 | . 2 . Full Trace Events . | . . . Feedback Events . | . . . Feedback Blocked . | . . . Robot Schematics Acquired . | . . . Robots Built . | . . . Authchips . | . . . Time . | . . . Total Robot Build Rating . | . . . Part Schematics Acquired . | . . . Parts Built . | . . . Authchips . | . . . Time . | . . . Total Part Build Rating . | . . . Part Studies Acquired . | . . . Parts Repaired . | . . . Time . | . . . Parts Recycled . | . . . Recycled Matter . | . . . Retrieved Matter . | . . . Retrieved Components . | . . . Parts Scanalyzed . | . . . Part Schematics Acquired . | . . . Parts Damaged . | . . . Bothacking | -11 -10 -10 ------------ Run | Yrd Mat Sub Used RIF Installer . | . . . Robots Hacked . | . . . Non-combat . | . . . Combat . | . . . Robot Hacks Applied . | . . . Relay Couplers Released . | . . . Fabnet Peak Effective % . | . . . Robots Rewired . | . . . Allies Hacked . | . . . Hacks Repelled . | . . . Allies | -11 -10 -10 -------- Run | Yrd Mat Sub Total Allies . | . . . Largest Group . | . . . Highest-Rated Group . | . . . Highest-Rated Ally . | . . . Total Orders . | . . . Ally Attacks . | . . . Total Damage . | . . . Kills . | . . . Allies Corrupted . | . . . Allies Melted . | . . . Intel | -11 -10 -10 ------- Run | Yrd Mat Sub Active Infowar (turns) 463 | . 463 . Seismic 463 | . 463 . Robot Analysis Total . | . . . Derelict Logs Recovered 1 | . . 1 Drone Launches . | . . . Drone Recoveries . | . . . Exploration | -11 -10 -10 ------------- Run | Yrd Mat Sub Turns Passed 6057 | 98 898 5061 Spaces Moved 2296 | 56 448 1792 Core 5 | 5 . . Treads 939 | 51 448 440 Legs . | . . . Wheels 1352 | . . 1352 Hover . | . . . Flight . | . . . Fastest Speed 50 | 50 160 160 Average Speed 243 | 150 160 266 Slowest Speed 960 | 160 160 960 Overloaded Moves . | . . . Propulsion Burnouts . | . . . Robots Hopped . | . . . Potential Cave-ins . | . . . Cave-ins Triggered . | . . . Exploration Rate (%) 55 | 3 76 87 Regions Visited 2 Branch Regions 1 Pre-discovered Areas 1 | . . 1 Known Exits Taken . | . . . Unknown Exits Taken 2 | 1 1 . Scrap Searched 4 | . . 4 Spaces Dug . | . . . Terrain Destroyed 65 | . 14 51 Melee . | . . . Projectile . | . . . AOE 65 | . 14 51 Terrain Rammed . | . . . Walls Destroyed . | . . . Machines Disabled . | . . . Actions | -11 -10 -10 --------- Run | Yrd Mat Sub Total 2591 | 70 566 1955 Wait 80 | . 60 20 Move 2294 | 55 447 1792 Hop . | . . . Pick Up 47 | 8 7 32 Fast Attach 5 | . 4 1 Attach 17 | 6 2 9 Detach 3 | . 1 2 Swap 18 | 1 3 14 Drop 13 | . 3 10 Fire 108 | . 34 74 Melee . | . . . Ram . | . . . Kick . | . . . Crush 5 | . 5 . Escape Stasis . | . . . Rewire 1 | . . 1 Trap . | . . . Miscellaneous . | . . . Route ------- -11/Scrapyard -10/Materials (discovered 4 exits: [*Mat x2] / [*Min] / *Sub) -10/Subcaves (discovered 2 exits: [*Mat] / [*Rec]) History --------- Turn | Location | Event 11 | -11/Scrapyard | Discovered new exit (range 15) 99 | -11/Scrapyard | Entered Materials 311 | -10/Materials | Build established: Mutant 410 | -10/Materials | Discovered new exit (range 11) 522 | -10/Materials | Discovered new exit (range 6) 923 | -10/Materials | Discovered new exit (range 15) 986 | -10/Materials | Discovered new exit (range 8) 997 | -10/Materials | Entered Subcaves 1400 | -10/Subcaves | Shifting Twisted Machinery released Shrapnel Trap 1410 | -10/Subcaves | Shifting Twisted Machinery released Spk. Treads 1543 | -10/Subcaves | Build established: Hauler-Mutant 2067 | -10/Subcaves | A swath of the cavern ceiling suddenly collapsed 2509 | -10/Subcaves | Disturbed a concealed Subdweller 3155 | -10/Subcaves | Shifting Twisted Machinery released Flamer 3176 | -10/Subcaves | Shifting Twisted Machinery released Mak. Shrapnel Gun 3238 | -10/Subcaves | Shifting Twisted Machinery released Flamer 3425 | -10/Subcaves | Visited Clippyterm 3431 | -10/Subcaves | Learned Research machine intel 3579 | -10/Subcaves | Discovered new exit (range 14) 4013 | -10/Subcaves | Core integrity fell below 50% 4044 | -10/Subcaves | Discovered new exit (range 15) 4046 | -10/Subcaves | A Subdweller sparked back to life 4046 | -10/Subcaves | A Subdweller sparked back to life 4102 | -10/Subcaves | Found Prototype Device 4132 | -10/Subcaves | A Subdweller sparked back to life 4135 | -10/Subcaves | Core integrity fell below 20% 6052 | -10/Subcaves | Disturbed a concealed Subdweller 6058 | -10/Subcaves | Destroyed by MG-BQI(R) with Subdweller Shrapnel Launcher Last Messages --------------- 04134_ 9M-Q03(R) destroyed. 04136_ Subatomizers dissect the Sub. Machine Gun. 04139_ Dropped Broken Sub. Power Source. 04141_ Acquired 26 matter. 04149_ Subatomizers dissect the Sub. Machine Gun. 04204_ Subatomizers dissect the Broken Sub. Power Source. 04236_ Subatomizers dissect the Sub. Monowheel. 04238_ Sub. Power Source shoots sparks and powers down. 04271_ Subatomizers dissect the Sub. Monowheel. 04285_ EC-RFM(R) destroyed. 04302_ Acquired 5 matter. 04537_ Sub. Monowheel shoots sparks and powers down. 04968_ Acquired 21 matter. 06052_ MG-BQI(R) angrily emerges from the Twisted Machinery. Map ----- +----------------------------------------------------+ | ???????????????????????????????# ## # | | ??????????????????????????????## # | | ??????????????????????????????# # | | ??????????????????????????????# #### | | ??????????????????????????????## ## ###? | | ???????????????????????????????##?# ## | | ??????????????????????????????????## # | | ???????????????????????????????????## | | ?????????????????????????????????##?# | | ?????????????????????????? ??????# ## | | ?????????????????????????# ##### | | ???????????????????? ??# | | ???????????????????? ??# | | ??????????????????? ?# | | ???????????????????? ?## ### | | ???????????????????? #??# ##???### | | ????????????????????# #??##????????# | | ????????????????????# ##?????????### | | ???????????????????## #????????## | | ???????????????????# ##???????# | | ??????????????####### #??????## | | ?????????????##;;;;## ##???### | | ?????????????#;; ;; ##??# | | ?????????????#; #?# ## | | ?????????????#; ########### ### | | ?????????????##; @ ## ## #### ## | | ?????????????# | | ???????????#$;R ## | | ?????????# & ### ## #### ## | | ????????#$ <#; #?#######??##### | | ????????# $?# #?????????????# | | ????????##??#### #???????###### | | ???????????????# #?##?### # | | ??????????????# ##### ## | | ??????????????## #### # | | ???????????????###### ##?# # | | ????????????????????# ##### ### | | ????????????????????# #### #?# | | ????????????????????###??# ### | | ?????????????????????????# ### | | ?????????????????????????## ???# | | ??????????????????????????#?????## | | ?????????????????????????????###### | | ?????????????????????????????# ## | | ?????????????????????????????# #### | | ????????????????????????????## ## | | ???????????????????????????## ## | | ??????????????????????????## ## | | ??????????????????????????# ## # ## | | ?????????????????###??????# ######## | +----------------------------------------------------+ Best States ------------- Heat Dissipation 25 Energy Generation 15 Energy Capacity 250 Matter Stores 300 Matter Capacity 300 Sight Range 16 Terrain Scan Density 10 Armor Coverage 150 Evasion (%) 40 Recoil Reduction 2 Item Schematics ----------------- None Robot Schematics ------------------ None Fabricated ------------ Nothing Repaired ---------- Nothing Studied --------- None Alien Tech Used ----------------- None Achievements -------------- None Challenges ------------ None Game ------ Seed MiningHeavyAccelerator Manual? 0 Play Time 00:18:31 Cumulative 321.3 hours Start 2026.09.22 @ 18:24:55 End 2026.09.22 @ 18:41:49 Sessions 1 Manual Loads 0 Difficulty Rogue Special Mode None Game No. 361 Rogue 361 Adventurer 0 Explorer 0 Win Type - Total 3 Types 3/0/0/0/0/0/0/0/0/0 Lore% 55 Gallery% 60 Achievement% 47 Wizard Run 0 Options --------- Layout 1 ASCII 0 Keyboard 0 Movement Numpad Keybinds 0 Fullscreen 2 Font 24/Smallcaps Map View 50x35 Zoom Use 0% Tactical HUD 1 Map Filters NONE Filters NONE Steam 1 RUN: 9e06c3b4-a0b9-408e-a01f-b67369efc7df